[Event "25th Troya Open 2017"]
[Site "Canakkale"]
[Date "2017.08.11"]
[Round "8.5"]
[White "Alaz, Ahmet Efekan"]
[Black "Baltaci, Ismail Tarik"]
[Result "1/2-1/2"]
[ECO "B50"]
[WhiteElo "2048"]
[BlackElo "1946"]
[Annotator "NA"]
[PlyCount "160"]
[EventCountry "TUR"]
[SourceTitle "playchess.com"]
[Source "ChessBase"]
[SourceQuality "1"]
[TimeControl "5400+30"]

{[%evp 11,156,31,39,27,45,32767,32767,32767,32767,58,47,32767,55,32,33,32767,32767,32767,32767,32767,4,3,7,18,14,32767,32767,-53,0,32767,60,32767,32767,32767,32767,20,33,23,63,32767,32767,0,0,-14,39,15,110,140,118,32767,32767,32767,32767,32767,-76,-85,-62,-111,-104,-108,-95,-144,-54,-74,0,0,93,0,39,32767,32767,32767,0,32767,0,0,0,0,7,0,0,0,0,0,141,137,523,614,806,660,627,888,616,32767,32767,32767,32767,768,723,0,8,0,1067,0,0,32767,32767,32767,32767,0,0,0,0,32767,32767,32767,32767,32767,32767,0,32767,32767,32767,32767,32767,32767,32767,32767,0,0,81,100,87,78,87,0,32767,32767,32767,32767,32767,32767,32767,32767,0,0,0]} 1. e4 {[%emt 0:00:30]} c5 {[%emt 0:01:00]} 2. Nf3 {[%emt 0:00:30]} d6 {[%emt 0:00:30]} 3. Bd3 {[%emt 0:00:30]} g6 {[%emt 0:00:30]} 4. c3 {[%emt 0:00:30]} Bg7 {[%emt 0:00:30]} 5. Bc2 {[%emt 0:00:30]} Bg4 {[%emt 0:01:30]} 6. O-O {[%emt 0:00:00]} Nc6 {[%emt 0:00:30]} 7. d3 {[%emt 0:00:00]} Nf6 {[%emt 0:00:30]} 8. Nbd2 {[%emt 0:02:30]} O-O {[%emt 0:01:30]} 9. h3 {[%emt 0:00:30]} Bxf3 {[%emt 0:02:30]} 10. Nxf3 {[%emt 0:00:30] LiveBook: 17 Games} Nd7 {[%emt 0:10:30] B50: Sicilian: 2...d6, Miscellaneous} (10... Rc8 11. Re1 Qc7 12. a3 b5 13. Bd2 Nd7 14. Qe2 a6 15. Rad1 Rb8 16. Bb1 e6 17. Be3 Nb6 18. Ba2 {1-0 (75) Noritsyn,N (2468)-Fishbein,A (2481) chess.com INT 2017}) 11. Be3 {[%emt 0:07:30]} b5 {[%emt 0:05:30]} 12. Qd2 {[%emt 0:05:30]} b4 {[%emt 0:04:30]} 13. Ba4 $146 {[%emt 0:03:30]} ({Predecessor:} 13. Bh6 bxc3 14. bxc3 Qa5 15. Bxg7 Kxg7 16. Bb3 e6 17. Rfd1 Rad8 18. Rac1 {0-1 (61) Zinnai,G (2040)-Seletsky,G (2337) Napoli 2013}) 13... bxc3 {[%emt 0:02:30]} 14. bxc3 {[%emt 0:00:30]} Qc7 {[%emt 0:01:30]} 15. Bh6 {[%emt 0:03:30]} Rab8 {[%emt 0:07:30]} 16. Bxg7 {[%emt 0:03:30]} Kxg7 {[%emt 0:00:30]} 17. Nh2 {[%emt 0:01:30]} Rb6 {[%emt 0:19:00]} 18. f4 {[%emt 0:06:30]} Rfb8 {[%emt 0:09:30]} 19. f5 {[%emt 0:05:30]} (19. Ng4 $14) 19... Rb2 {[%emt 0:00:30]} 20. Qf4 {[%emt 0:01:30]} f6 {[%emt 0:10:30]} (20... Nf6 $11) 21. fxg6 {[%emt 0:16:30]} hxg6 {[%emt 0:00:30]} 22. Ng4 {[%emt 0:00:30]} Rh8 {[%emt 0:00:30]} 23. Ne3 {[%emt 0:15:30]} Nde5 {[%emt 0:01:30]} 24. Nd5 {[%emt 0:01:30]} Qd8 {[%emt 0:01:30]} 25. Qe3 {[%emt 0:02:30]} Qc8 {[%emt 0:07:43]} 26. Qg3 {[%emt 0:08:39]} Rh5 {[%emt 0:00:47]} 27. Rf2 {[%emt 0:06:38]} Rg5 {[%emt 0:04:40]} (27... Rxf2 $1 $11 28. Kxf2 Qb7) 28. Qe3 $1 {[%emt 0:02:20]} Qb7 {[%emt 0:01:26]} 29. Nf4 {[%emt 0:03:20]} Nd8 {[%emt 0:01:16]} 30. Bb3 {[%emt 0:01:43]} Rxf2 {[%emt 0:00:02]} 31. Qxf2 {[%emt 0:02:30]} c4 {[%emt 0:00:27]} 32. Bxc4 {[%emt 0:02:07]} Nxc4 {[%emt 0:00:26]} 33. dxc4 {[%emt 0:00:04]} Re5 {[%emt 0:00:11]} 34. Nd5 {[%emt 0:01:51]} Ne6 {[%emt 0:02:05]} 35. Re1 {[%emt 0:01:08]} Nc5 {[%emt 0:00:57]} 36. Qc2 {[%emt 0:00:41]} f5 {[%emt 0:01:25]} (36... Qa6 $17 37. Ne3 Qa4) 37. Rb1 {[%emt 0:00:16]} Qd7 {[%emt 0:00:48]} 38. exf5 {[%emt 0:00:10]} Rxf5 {[%emt 0:00:33]} (38... Qxf5 $11 {keeps the balance.} 39. Qd1 Qe4) 39. Rf1 {[%emt 0:01:35]} ({White should play} 39. Qd2 $16) 39... Qe6 {[%emt 0:01:39]} 40. Rxf5 {[%emt 0:00:23]} gxf5 {[%emt 0:00:30]} 41. Qd2 {[%emt 0:00:28]} Kf7 {[%emt 0:02:31]} 42. Qg5 {[%emt 0:00:45]} Qe1+ {[%emt 0:01:04]} 43. Kh2 {[%emt 0:00:02]} Qe5+ {[%emt 0:00:00]} 44. Qg3 {[%emt 0:00:53]} Qe4 {[%emt 0:01:45]} 45. Nf4 {[%emt 0:00:30]} Qe5 {[%emt 0:00:38]} 46. Qg6+ {[%emt 0:00:55]} Kf8 {[%emt 0:00:01]} 47. g3 {[%emt 0:00:00]} e6 {[%emt 0:01:15] [#]} (47... Qe4 $1 $11 {remains equal.}) 48. h4 $1 {[%emt 0:00:33]} Ke7 $2 {[%emt 0:00:18]} (48... Qxc3 $16 {is a better chance.} 49. Nxe6+ Nxe6) 49. h5 {[%emt 0:00:30]} Qxc3 {[%emt 0:00:20]} 50. Qh7+ {[%emt 0:00:35]} Kd8 {[%emt 0:00:26]} 51. h6 {[%emt 0:00:55]} Qd2+ {[%emt 0:00:03]} 52. Kh3 {[%emt 0:00:05]} Qd1 {[%emt 0:00:08]} 53. Qg8+ {[%emt 0:00:16]} Kc7 {[%emt 0:00:21]} 54. Qg7+ {[%emt 0:00:26]} Kc6 {[%emt 0:00:13]} 55. Kh2 $2 {[%emt 0:00:41]} (55. Kh4 $18) 55... Nd3 {[%emt 0:01:12]} 56. Nxd3 {[%emt 0:01:09]} (56. Qg6 $5 {[%cal Rg6e8]} Ne5 57. Qe8+ (57. Qxe6 Ng4+ 58. Kg2 Qc2+ 59. Ne2 Nxh6 $11) 57... Kb7 58. Qe7+ Kc6 59. Qe8+ (59. Qxa7 Ng4+ 60. Kg2 Qd2+ 61. Kf1 Nh2+ 62. Kg1 Nf3+ 63. Kf1 Nh2+ 64. Kg1 Nf3+ 65. Kf1 Nh2+ $11) 59... Kb7 60. Qxe6 Ng4+ 61. Kg2 Qd2+ 62. Qe2 Qxe2+ 63. Nxe2 Nxh6 $11 64. Nd4 $11) 56... Qe2+ $2 {[%emt 0:00:31]} (56... Qxd3 $11 57. Qb2 Qe3) 57. Kg1 $2 {[%emt 0:00:52]} (57. Kh3 $18 Qxd3 58. Kh4) 57... Qxd3 {[%emt 0:00:46]} 58. Qg5 {[%emt 0:00:34]} Qd1+ {[%emt 0:00:13]} 59. Kf2 {[%emt 0:00:28]} Qc2+ {[%emt 0:00:08]} 60. Ke1 {[%emt 0:00:28]} Qc3+ {[%emt 0:01:20]} 61. Kd1 {[%emt 0:00:29]} Qd3+ {[%emt 0:01:05]} 62. Qd2 {[%emt 0:00:35]} Qb1+ {[%emt 0:00:13]} 63. Ke2 {[%emt 0:00:18]} Qe4+ {[%emt 0:00:32]} 64. Kf2 {[%emt 0:00:16]} Qh1 {[%emt 0:00:35]} 65. Qe3 {[%emt 0:00:28]} (65. Qf4 $5 {[%cal Rf4f3]} Qh2+ 66. Ke1 $11) 65... Qh2+ {[%emt 0:00:12]} 66. Ke1 {[%emt 0:00:47]} Qh1+ {[%emt 0:00:30]} 67. Kd2 {[%emt 0:00:28]} e5 {[%emt 0:00:10]} 68. Ke2 {[%emt 0:00:49]} Qh2+ {[%emt 0:00:32]} 69. Kd3 {[%emt 0:00:44]} Qb2 {[%emt 0:00:50]} 70. Qd2 {[%emt 0:00:34]} Qd4+ {[%emt 0:00:31] [#]} (70... Qa3+ $11 71. Ke2 Qxg3) 71. Kc2 $1 {[%emt 0:00:27]} Qe4+ {[%emt 0:00:12]} (71... Qg4 $1 $11) 72. Kb2 {[%emt 0:00:32]} Qg4 {[%emt 2:02:49]} 73. Qd3 $11 {[%emt 2:06:17]} (73. h7 $16 Qh5 74. Qd5+ Kc7 75. c5 Qxh7 76. Qxd6+ (76. cxd6+ Kb6 $14) 76... Kc8 77. Qxe5) 73... Qh5 {[%emt 0:00:30]} 74. Qd5+ {[%emt 0:00:30]} Kc7 {[%emt 0:00:30]} 75. Qa5+ {[%emt 0:00:00]} Kb7 {[%emt 0:00:05]} 76. Qd5+ {[%emt 0:00:51]} Kc7 77. Qe6 {[%emt 0:00:17]} Qe2+ {[%emt 0:00:17]} 78. Kc3 {[%emt 0:00:28]} Qe3+ {[%emt 0:00:26]} 79. Kb2 {[%emt 0:00:31]} Qd2+ {[%emt 0:00:17]} 80. Kb3 {[%emt 0:00:10]} Qd3+ {[%emt 0:00:19]} 1/2-1/2

[Event "25th Troya Open 2017"]
[Site "Canakkale"]
[Date "2017.08.11"]
[Round "8.7"]
[White "Yanik, Murat"]
[Black "Karaahmetoglu, Ege"]
[Result "0-1"]
[ECO "C55"]
[WhiteElo "1875"]
[BlackElo "2086"]
[Annotator "NA RC"]
[PlyCount "106"]
[EventCountry "TUR"]
[SourceTitle "playchess.com"]
[Source "ChessBase"]
[SourceQuality "1"]
[TimeControl "5400+30"]

{[%evp 19,97,-21,0,32767,32767,32767,0,32767,0,-2,32767,32767,32767,-88,-73,-100,-80,-85,-78,-103,-40,32767,32767,32767,-117,-117,-104,-89,772,32767,32767,32767,-127,-95,-112,-80,-117,-245,-82,-126,-30,-28,-28,-207,32767,32767,32767,32767,32767,-170,-157,-202,-116,-201,-239,-229,-118,-197,-234,32767,32767,32767,32767,-276,-310,-312,-351,-297,-267,32767,32767,32767,-833,32767,32767,32767,32767,32767,32767,-2842]} 1. e4 {[%emt 0:00:30]} e5 {[%emt 0:01:00]} 2. Nf3 {[%emt 0:00:30]} Nc6 {[%emt 0:00:30]} 3. Bc4 {[%emt 0:00:30]} Be7 {[%emt 0:00:30]} 4. c3 {[%emt 0:00:30]} Nf6 {[%emt 0:00:30]} 5. d3 {[%emt 0:00:30]} O-O {[%emt 0:00:00]} 6. Bb3 {[%emt 0:01:30]} h6 {[%emt 0:02:00] C55: Two Knights: 4 d3, 4 d4 exd4 5 e5 and Max Lange Attack} (6... d6 7. O-O Na5 8. Bc2 c5 9. d4 cxd4 10. cxd4 Nc6 11. d5 Nb4 12. Bb3 a5 13. a3 Na6 14. Bc2 Bd7 15. Bd2 a4 16. Re1 b5 {0-1 (48) Tiviakov,S (2639)-Nikolic,P (2601) Leiden 2015}) 7. h3 {[%emt 0:01:30]} d5 {[%emt 0:00:30]} 8. Qe2 {[%emt 0:03:30]} Re8 {[%emt 0:00:30]} 9. Nbd2 {[%emt 0:02:30]} Be6 {[%emt 0:04:30]} 10. Bc2 $146 {[%emt 0:01:30]} ({Predecessor:} 10. Ba4 Bd6 11. Nf1 Rb8 12. Bxc6 bxc6 {0-1 (38) Khmiadashvili,T (2177)-Chkhaidze,N (2115) Tbilisi 2002}) 10... Bf8 {[%emt 0:01:30]} 11. Nf1 {[%emt 0:01:30]} g6 {[%emt 0:03:30]} 12. Ng3 {[%emt 0:01:30]} Bg7 {[%emt 0:00:30]} 13. O-O {[%emt 0:02:30]} Nd7 {[%emt 0:06:30]} 14. Rd1 {[%emt 0:03:30]} Qe7 {[%emt 0:05:30]} 15. b4 {[%emt 0:09:30]} a6 {[%emt 0:01:30]} 16. a4 {[%emt 0:02:30]} (16. Bb3 $11 d4 17. Bxe6 Qxe6 18. Bb2) 16... d4 {[%emt 0:01:30]} 17. cxd4 {[%emt 0:16:30]} exd4 {[%emt 0:00:30]} 18. Bb2 {[%emt 0:01:30]} Qxb4 {[%emt 0:04:30]} 19. Rdb1 {[%emt 0:00:30] [#]} Qa5 {[%emt 0:04:30]} ({Better is} 19... b5 $1 $17 20. Bc1 Qc5) 20. Ba3 {[%emt 0:01:30]} b5 {[%emt 0:03:30]} 21. Bc1 {[%emt 0:07:30]} b4 {[%emt 0:01:30]} 22. Nd2 {[%emt 0:00:30]} Qc5 {[%emt 0:06:30]} 23. Nb3 {[%emt 0:00:30]} Bxb3 {[%emt 0:02:30]} (23... Na5 $2 {[%emt 0:01:30][%mdl 8192]}) (23... Qd6 $17 24. Qd1 Ne7) 24. Bxb3 {[%emt 0:00:30]} Na5 {[%emt 0:00:00]} 25. Bd1 {[%emt 0:03:30]} Qe7 {[%emt 0:02:00]} 26. f4 {[%emt 0:05:30]} c5 {[%emt 0:00:00]} 27. Bd2 {[%emt 0:00:30]} Rab8 {[%emt 0:02:00]} 28. Qf1 {[%emt 0:05:00] [#]} (28. Qe1 $17) 28... Rb6 $2 {[%emt 0:07:30]} (28... c4 $1 $19 {[%cal Rc4c3][%mdl 512]} 29. dxc4 {[#]} d3 $1 {[%mdl 512]}) 29. Bf3 {[%emt 0:02:30] [#]} f6 {[%emt 0:07:30]} ({Better is} 29... c4 $1 $17 {[%mdl 512]} 30. dxc4 {[#]} d3 $1 {[%mdl 512]}) 30. h4 {[%emt 0:00:30]} Kh8 {[%emt 0:01:30]} 31. Be2 $2 {[%emt 0:01:30]} (31. h5 $11 {and White has nothing to worry.} g5 32. Bg4) 31... Nb7 {[%emt 0:12:51]} 32. f5 {[%emt 0:07:11]} g5 {[%emt 0:00:14]} 33. hxg5 {[%emt 0:00:39]} fxg5 {[%emt 0:00:07]} 34. Re1 {[%emt 0:01:32]} (34. a5 $17 Rb5 35. Bd1) 34... Ne5 {[%emt 0:02:46]} 35. Nh5 {[%emt 0:01:58] [#]} (35. a5 $17 {is a better defense.} Rb5 36. Nh5) 35... Bf6 {[%emt 0:00:42]} (35... a5 $1 $19 36. Nxg7 Qxg7) 36. g4 {[%emt 0:02:59]} (36. Nxf6 $17 Qxf6 37. a5) 36... a5 {[%emt 0:00:49]} 37. Qh3 {[%emt 0:01:13]} Nd8 {[%emt 0:01:30]} ({Better is} 37... Kg8 $19 38. Bf1 Rd8 39. Nxf6+ Qxf6) 38. Kf2 {[%emt 0:00:54]} (38. Bc1 $17) 38... Ndf7 {[%emt 0:00:23]} 39. Rh1 {[%emt 0:00:06]} Rc8 {[%emt 0:03:44]} 40. Rhc1 {[%emt 0:04:00]} Rd6 {[%emt 0:00:30]} 41. Ra2 {[%emt 0:04:18]} Rdd8 {[%emt 0:02:41]} 42. Bd1 {[%emt 0:00:30]} c4 {[%emt 0:03:44]} 43. dxc4 {[%emt 0:00:06]} Rc5 {[%emt 0:00:27]} ({Weaker is} 43... Rxc4 44. Bb3 $19) 44. Be2 {[%emt 0:00:37]} d3 {[%emt 0:00:44]} 45. Bf1 {[%emt 0:01:17]} Rxc4 {[%emt 0:00:23]} 46. Rxc4 {[%emt 0:00:57]} Nxc4 {[%emt 0:00:30]} 47. Bxd3 {[%emt 0:00:17]} b3 {[%emt 0:00:40]} 48. Bxg5 {[%emt 0:03:15]} Bxg5 {[%emt 0:00:31]} 49. Re2 $19 {[%emt 0:00:18]} Nce5 {[%emt 0:00:21]} 50. Bb5 {[%emt 0:00:15]} Qc5+ {[%emt 0:01:07]} 51. Kg2 {[%emt 0:00:12]} Qc2 {[%emt 0:01:23]} 52. Ng3 {[%emt 0:01:13]} Rd2 {[%emt 0:00:21]} 53. f6 {[%emt 0:00:42]} Rxe2+ {[%emt 0:00:10]} 0-1

[Event "25th Troya Open 2017"]
[Site "Canakkale"]
[Date "2017.08.11"]
[Round "8.8"]
[White "Inan, Canberk"]
[Black "Tarlabasi, Emirhan"]
[Result "0-1"]
[ECO "C02"]
[WhiteElo "1777"]
[BlackElo "2036"]
[Annotator "NA RC"]
[PlyCount "62"]
[EventCountry "TUR"]
[SourceTitle "playchess.com"]
[Source "ChessBase"]
[SourceQuality "1"]
[TimeControl "5400+30"]

{[%evp 8,52,6,32767,32767,32767,32767,32767,32767,18,32767,32767,32767,30,34,12,92,26,32767,13,32767,-76,-53,-71,-57,-87,-75,32767,32767,32767,-98,-293,-280,-252,-147,-143,-131,-220,-183,-179,-190,-197,-200,-189,-207,-197,-212]} 1. e4 {[%emt 0:00:30]} e6 {[%emt 0:01:00]} 2. d4 {[%emt 0:00:30]} d5 {[%emt 0:00:30]} 3. Bd3 {[%emt 0:00:30]} c5 {[%emt 0:03:30]} 4. c3 {[%emt 0:00:00]} Nc6 {[%emt 0:01:30]} 5. Nf3 {[%emt 0:00:00]} Nf6 {[%emt 0:03:30]} 6. e5 {[%emt 0:00:30]} Nd7 {[%emt 0:00:30]} 7. O-O {[%emt 0:00:30]} Be7 {[%emt 0:06:30]} 8. a3 {[%emt 0:02:30]} b6 {[%emt 0:04:30] C02: French: Advance Variation} (8... a5 9. a4 O-O 10. Na3 cxd4 11. cxd4 Nb4 12. Bb1 b6 13. Nb5 Ba6 14. Re1 Re8 15. Ra3 Nf8 16. Rc3 {1-0 (69) Idani,P (2576)-Mosadeghpour,M (2444) Teheran 2017}) 9. b4 {[%emt 0:03:30]} h6 {[%emt 0:03:30]} 10. Be3 $146 {[%emt 0:05:30]} ({Predecessor:} 10. h3 Qc7 11. Be3 Bb7 12. Nbd2 O-O 13. Rc1 f6 14. exf6 Rxf6 {½-½ (59) Guerin,F (2130)-Cozette,M (1981) Paris 2010}) 10... c4 {[%emt 0:01:30]} 11. Bc2 {[%emt 0:00:30]} Qc7 {[%emt 0:01:30] [#]} (11... b5 $14) 12. Nfd2 {[%emt 0:05:30]} ({White should try} 12. a4 $1 $16) 12... g6 {[%emt 0:09:30]} 13. f4 {[%emt 0:10:30]} (13. a4 $16) 13... h5 {[%emt 0:02:30]} 14. Nxc4 $2 {[%emt 0:10:30]} (14. a4 $16 {keeps the pressure on.}) 14... dxc4 {[%emt 0:01:30]} 15. d5 {[%emt 0:00:00]} exd5 {[%emt 0:01:30]} 16. Qxd5 {[%emt 0:00:00]} Ndxe5 {[%emt 0:06:30]} 17. fxe5 {[%emt 0:00:30]} Be6 {[%emt 0:00:30]} 18. Qf3 {[%emt 0:07:30]} O-O-O {[%emt 0:11:30]} 19. b5 $2 {[%emt 0:08:30]} (19. Ba4 $17 Nxe5 20. Qa8+ Qb8 21. Qxb8+ Kxb8 22. Bf4) 19... Nxe5 {[%emt 0:02:30]} 20. Qa8+ {[%emt 0:00:30] [#]} Qb8 {[%emt 0:00:30]} (20... Kd7 $1 $19 21. Qe4 f5 22. Rd1+ Ke8 23. Rxd8+ Bxd8) 21. Qxb8+ {[%emt 0:05:30]} Kxb8 {[%emt 0:00:30]} 22. Bf4 {[%emt 0:00:30]} (22. Nd2 $17) 22... Bc5+ {[%emt 0:02:30]} 23. Kh1 {[%emt 0:00:00] [#]} Bd6 $1 {[%emt 0:00:30]} 24. Bg5 {[%emt 0:02:00]} Rd7 {[%emt 0:02:30]} 25. Nd2 {[%emt 0:00:30]} Nd3 {[%emt 0:06:30]} 26. Bf6 {[%emt 0:04:30]} Re8 $19 {[%emt 0:02:30]} 27. Rad1 {[%emt 0:02:30]} Bc5 {[%emt 0:07:32]} 28. Ne4 {[%emt 0:00:30]} Bg4 {[%emt 0:02:07]} 29. Nxc5 {[%emt 0:01:30]} bxc5 {[%emt 0:00:20]} 30. Rb1 {[%emt 0:00:30]} Be2 {[%emt 0:00:47]} 31. Bxd3 {[%emt 0:00:30]} cxd3 {[%emt 0:00:11]} 0-1

[Event "25th Troya Open 2017"]
[Site "Canakkale"]
[Date "2017.08.11"]
[Round "8.9"]
[White "Sar, Can"]
[Black "Vursan, Emre Can"]
[Result "1-0"]
[ECO "B01"]
[WhiteElo "1619"]
[BlackElo "1696"]
[Annotator "NA RC"]
[PlyCount "233"]
[EventCountry "TUR"]
[SourceTitle "playchess.com"]
[Source "ChessBase"]
[SourceQuality "1"]
[TimeControl "5400+30"]

1. e4 d5 2. exd5 Qxd5 3. Nc3 Qa5 4. d4 Nf6 5. Nf3 Bg4 6. Bc4 Nc6 7. Be3 e6 8. h3 Bb4 9. hxg4 Bxc3+ 10. bxc3 Qxc3+ 11. Nd2 Nxg4 12. Bd3 Nxd4 13. Bxd4 Qxd4 14. O-O h5 15. Qf3 Rd8 16. Ne4 Ne5 17. Qg3 h4 18. Qh3 Nxd3 19. cxd3 Qxd3 20. f3 f5 21. Nf2 Qa3 22. Rfe1 Kf7 23. Re2 Rh6 24. Rc2 c6 25. Rb1 Rd7 26. Qh2 Qe3 27. Qh3 c5 28. Kh1 b6 29. Rf1 Rd2 30. Ng4 fxg4 31. fxg4+ Rf6 32. Rxf6+ gxf6 33. Qxe3 Rxc2 34. Qb3 Rd2 35. Kh2 Rd4 36. Qf3 Kg6 37. Qe2 e5 38. Qc2+ e4 39. Kh3 f5 40. gxf5+ Kxf5 41. Kxh4 Kf4 42. Qf2+ Ke5 43. Kg5 Rd3 44. Qb2+ Rd4 45. Kg4 Kd5 46. Kf4 Ke6 47. g4 e3+ 48. Kxe3 Rxg4 49. Qh2 Rd4 50. Qg2 Rd7 51. Qc6+ Ke7 52. Ke4 Rd6 53. Qc7+ Rd7 54. Qe5+ Kd8 55. Kf5 Rf7+ 56. Kg6 Rc7 57. Kf6 Kc8 58. Qd5 Kb8 59. Qc4 Kb7 60. Ke5 Rc6 61. a4 a5 62. Kd5 Rc7 63. Qe4 Ka7 64. Kd6 Kb8 65. Qe8+ Rc8 66. Qe5 Kb7 67. Qd5+ Kb8 68. Kd7 Rc7+ 69. Kd8 Rc8+ 70. Kd7 Rc7+ 71. Kd6 Rc8 72. Qc4 Kb7 73. Ke5 Rc6 74. Ke4 Rc7 75. Kd3 Rd7+ 76. Kc2 Rd4 77. Qf7+ Kb8 78. Kc3 Rb4 79. Qd7 Rd4 80. Qb5 Kb7 81. Qe8 Rb4 82. Qd7+ Kb8 83. Qc6 Ka7 84. Qc7+ Ka8 85. Kd3 Rd4+ 86. Kc3 Rb4 87. Kd3 Rd4+ 88. Ke3 Rb4 89. Kf3 c4 90. Ke4 c3+ 91. Kd5 c2 92. Qxc2 Kb7 93. Qc6+ Kb8 94. Qd7 Rb1 95. Kc6 Rc1+ 96. Kb5 Rc7 97. Qd6 Ka8 {[%emt 2:17:17]} 98. Kxb6 {[%emt 1:53:00]} Rb7+ {[%emt 0:00:05]} 99. Kxa5 {[%emt 0:00:30]} Ra7+ {[%emt 0:01:09]} 100. Kb4 {[%emt 0:00:30]} Rb7+ {[%emt 0:00:00]} 101. Ka3 {[%emt 0:00:00]} Rc7 {[%emt 0:00:09]} 102. a5 {[%emt 0:00:00]} Ra7 {[%emt 0:00:29]} 103. a6 {[%emt 0:00:30]} Rh7 {[%emt 0:00:45]} 104. Ka4 {[%emt 0:00:30]} Ka7 {[%emt 0:00:41]} 105. Qc6 {[%emt 0:01:30]} Rh4+ {[%emt 0:00:23]} 106. Kb3 {[%emt 0:00:00]} Rh3+ {[%emt 0:00:12]} 107. Kc2 {[%emt 0:00:00]} Rh2+ {[%emt 0:00:09]} 108. Kd3 {[%emt 0:00:00]} Rh3+ {[%emt 0:00:03]} 109. Ke2 {[%emt 0:00:00]} Rh2+ {[%emt 0:00:08]} 110. Kf3 {[%emt 0:00:30]} Rh7 {[%emt 0:00:25]} 111. Kg4 {[%emt 0:00:00]} Kb8 {[%emt 0:00:30]} 112. Kg5 {[%emt 0:00:00]} Rg7+ {[%emt 0:00:03]} 113. Kh6 {[%emt 0:00:30]} Rc7 {[%emt 0:00:27]} 114. Qd6 {[%emt 0:00:30]} Kc8 {[%emt 0:00:22]} 115. Qb6 {[%emt 0:00:30]} Rd7 {[%emt 0:00:35]} 116. Qc6+ {[%emt 0:00:30]} Kd8 {[%emt 0:00:40]} 117. Qxd7+ {[%emt 0:00:00]} 1-0

[Event "25th Troya Open 2017"]
[Site "Canakkale"]
[Date "2017.08.11"]
[Round "8.10"]
[White "Ozkurt, Kutay"]
[Black "Sozen, Abdullah"]
[Result "1-0"]
[ECO "C22"]
[WhiteElo "1686"]
[BlackElo "1629"]
[Annotator "NA RC"]
[PlyCount "185"]
[EventCountry "TUR"]
[SourceTitle "playchess.com"]
[Source "ChessBase"]
[SourceQuality "1"]
[TimeControl "5400+30"]

1. e4 {[%emt 0:00:30]} e5 {[%emt 0:01:00]} 2. d4 {[%emt 0:00:30]} exd4 {[%emt 0:00:30]} 3. Qxd4 {[%emt 0:00:30]} Nc6 {[%emt 0:00:30]} 4. Qe3 {[%emt 0:00:30]} Nf6 {[%emt 0:00:30]} 5. Nc3 {[%emt 0:00:30]} Bb4 {[%emt 0:00:30]} 6. Bd2 {[%emt 0:00:00]} O-O {[%emt 0:01:30]} 7. O-O-O {[%emt 0:00:00]} d6 {[%emt 0:01:30]} 8. f3 {[%emt 0:00:00]} Bc5 {[%emt 0:01:30]} 9. Qg5 {[%emt 0:03:00]} Nd4 {[%emt 0:05:30]} 10. Nge2 {[%emt 0:02:30]} Ne6 {[%emt 0:00:30]} 11. Qg3 {[%emt 0:00:30]} Nh5 {[%emt 0:02:30]} 12. Qe1 {[%emt 0:00:00]} Qf6 {[%emt 0:02:30]} 13. Nd5 {[%emt 0:00:00]} Qd8 {[%emt 0:00:30]} 14. g4 {[%emt 0:01:30]} Nf6 {[%emt 0:00:30]} 15. Ndf4 {[%emt 0:00:30]} Qe8 {[%emt 0:03:30]} 16. Nc3 {[%emt 0:03:30]} a6 {[%emt 0:02:30]} 17. h4 {[%emt 0:02:30]} c6 {[%emt 0:02:30]} 18. h5 {[%emt 0:00:30]} b5 {[%emt 0:05:30]} 19. Nxe6 {[%emt 0:00:30]} Bxe6 {[%emt 0:01:30]} 20. g5 {[%emt 0:00:00]} Nd7 {[%emt 0:01:30]} 21. Kb1 {[%emt 0:03:00]} a5 {[%emt 0:02:30]} 22. f4 {[%emt 0:00:30]} Bg4 {[%emt 0:01:30]} 23. Be2 {[%emt 0:00:00]} Bxe2 {[%emt 0:00:30]} 24. Qxe2 {[%emt 0:01:00]} a4 {[%emt 0:02:30]} 25. Rde1 {[%emt 0:21:30]} b4 {[%emt 0:02:30]} 26. Nd1 {[%emt 0:00:00]} b3 {[%emt 0:03:30]} 27. a3 {[%emt 0:02:00]} bxc2+ {[%emt 0:02:30]} 28. Kxc2 {[%emt 0:00:30]} Qe6 {[%emt 0:00:30]} 29. Bc3 {[%emt 0:00:30]} Qb3+ {[%emt 0:00:30]} 30. Kc1 {[%emt 0:00:30]} Rab8 {[%emt 0:00:30]} 31. Qc2 {[%emt 0:00:30]} Qa2 {[%emt 0:00:30]} 32. f5 {[%emt 0:00:30]} Ba7 {[%emt 0:00:30]} 33. f6 {[%emt 0:00:30]} Nc5 {[%emt 0:08:30]} 34. Kd2 {[%emt 0:27:30]} Qc4 {[%emt 0:03:30]} 35. Ne3 {[%emt 0:01:30]} Nxe4+ {[%emt 0:02:30]} 36. Kc1 {[%emt 0:01:30]} Bxe3+ {[%emt 0:00:30]} 37. Rxe3 {[%emt 0:00:00]} Nxc3 {[%emt 0:01:30]} 38. Qxc3 {[%emt 0:00:00]} Qf4 {[%emt 0:00:30]} 39. Qd2 {[%emt 0:05:30]} Qxg5 {[%emt 0:02:30]} 40. fxg7 {[%emt 0:00:00]} Qxg7 {[%emt 0:00:30]} 41. h6 {[%emt 0:01:00]} Qf6 {[%emt 0:01:30]} 42. Qg2+ {[%emt 0:01:30]} Kh8 {[%emt 0:00:30]} 43. Rc3 {[%emt 0:10:10]} c5 {[%emt 0:01:30]} 44. Rf3 {[%emt 0:00:42]} Qe5 {[%emt 0:00:30]} 45. Qf2 {[%emt 0:00:24]} f5 {[%emt 0:01:30]} 46. Rf1 {[%emt 0:00:40]} c4 {[%emt 0:00:30]} 47. Qc2 {[%emt 0:00:09]} d5 {[%emt 0:01:30]} 48. Rxf5 {[%emt 0:00:20]} Rxf5 {[%emt 0:00:00]} 49. Rxf5 {[%emt 0:01:04]} Qe1+ {[%emt 0:00:00]} 50. Qd1 {[%emt 0:00:00]} Qxd1+ {[%emt 0:00:30]} 51. Kxd1 {[%emt 0:00:00]} Rd8 {[%emt 0:00:30]} 52. Rf7 {[%emt 0:00:07]} Kg8 {[%emt 0:00:30]} 53. Ra7 {[%emt 0:00:30]} Rd6 {[%emt 0:00:30]} 54. Rxa4 {[%emt 0:00:30]} Rxh6 {[%emt 0:00:30]} 55. Ra7 {[%emt 0:00:30]} Rd6 {[%emt 0:00:30]} 56. Kc2 {[%emt 0:00:30]} h5 {[%emt 0:00:30]} 57. Re7 {[%emt 0:00:30]} h4 {[%emt 0:00:30]} 58. Re1 {[%emt 0:00:30]} h3 {[%emt 0:00:00]} 59. Rh1 {[%emt 0:01:38]} Rh6 {[%emt 0:00:00]} 60. Kc3 {[%emt 0:00:07]} Kf7 {[%emt 0:00:00]} 61. Kd4 {[%emt 0:00:12]} Ke6 {[%emt 0:00:00]} 62. Kc5 {[%emt 0:00:06]} Rh5 {[%emt 0:00:00]} 63. a4 {[%emt 0:00:25]} Kd7 {[%emt 0:22:56]} 64. Kb6 {[%emt 0:02:49]} Kc8 {[%emt 0:00:00]} 65. a5 {[%emt 0:00:00]} d4 {[%emt 0:00:00]} 66. a6 {[%emt 0:00:12]} Kb8 {[%emt 0:00:00]} 67. Rf1 {[%emt 0:00:53]} Rh6+ {[%emt 0:00:00]} 68. Kb5 {[%emt 0:00:00]} h2 {[%emt 0:00:00]} 69. Rf8+ {[%emt 0:00:00]} Kc7 {[%emt 0:00:00]} 70. a7 {[%emt 0:06:02]} Rb6+ {[%emt 0:00:00]} 71. Kc5 {[%emt 0:01:23]} Rc6+ {[%emt 0:00:00]} 72. Kb5 {[%emt 0:00:16]} Rb6+ {[%emt 0:00:00]} 73. Kc5 {[%emt 0:00:09]} h1=Q {[%emt 0:00:00]} 74. Rf7+ {[%emt 0:00:27]} Kc8 {[%emt 0:00:00]} 75. Kxb6 {[%emt 0:00:22]} Qh6+ {[%emt 0:00:00]} 76. Kb5 {[%emt 0:00:08]} Qh5+ {[%emt 0:00:00]} 77. Kb4 {[%emt 0:00:11]} Qxf7 {[%emt 0:00:13]} 78. a8=Q+ {[%emt 0:00:37]} Kd7 {[%emt 0:00:21]} 79. Qb7+ {[%emt 0:00:00]} Ke6 {[%emt 0:00:30]} 80. Qxf7+ {[%emt 0:00:32]} Kxf7 {[%emt 0:00:30]} 81. Kxc4 {[%emt 0:00:03]} d3 {[%emt 0:00:00]} 82. Kxd3 {[%emt 0:00:08]} Ke6 {[%emt 0:00:00]} 83. Ke4 {[%emt 0:00:21]} Kd6 {[%emt 0:00:30]} 84. Kd4 {[%emt 0:00:03]} Kc6 {[%emt 0:00:00]} 85. Kc4 {[%emt 0:00:36]} Kb6 {[%emt 0:00:00]} 86. Kb4 {[%emt 0:00:00]} Kc6 {[%emt 0:00:00]} 87. Ka5 {[%emt 0:00:04]} Kb7 {[%emt 0:00:00]} 88. Kb5 {[%emt 0:00:05]} Ka7 {[%emt 0:00:00]} 89. Kc6 {[%emt 0:00:00]} Ka6 {[%emt 0:00:00]} 90. b4 {[%emt 0:00:25]} Ka7 {[%emt 0:00:00]} 91. b5 {[%emt 0:00:00]} Ka8 {[%emt 0:00:00]} 92. b6 {[%emt 0:00:00]} Kb8 {[%emt 0:00:30]} 93. b7 {[%emt 0:00:00]} 1-0